[Event "8th Gibraltar U16-Junior 2018"]
[Site "Caleta"]
[Date "2018.08.17"]
[Round "1"]
[White "Moreby, James"]
[Black "Headlong, Benjamin"]
[Result "1-0"]
[ECO "A21"]
[WhiteElo "2084"]
[BlackElo "1597"]
[Annotator "NA RC"]
[PlyCount "69"]
[EventDate "2018.08.17"]
[EventType "swiss"]
[EventCountry "GGB"]
[SourceTitle "playchess.com"]
[Source "ChessBase"]
[SourceQuality "1"]
[TimeControl "6600+10"]

1. c4 {[%emt 0:00:00]} e5 {[%emt 0:00:22]} 2. Nc3 {[%emt 0:00:02]} Bb4 {[%emt 0:00:25]} 3. Nd5 {[%emt 0:00:04]} Bd6 {[%emt 0:00:44]} 4. Nf3 {[%emt 0:00:56]} c6 {[%emt 0:01:10]} 5. Nc3 {[%emt 0:00:07]} Bc7 {[%emt 0:00:35]} 6. d4 {[%emt 0:07:37]} exd4 {[%emt 0:04:39]} 7. Nxd4 {[%emt 0:03:15]} Ne7 {[%emt 0:01:36]} 8. Bg5 {[%emt 0:01:06]} f6 {[%emt 0:02:06]} 9. Bh4 {[%emt 0:00:20]} d5 {[%emt 0:02:39]} 10. e3 {[%emt 0:00:22]} Ng6 {[%emt 0:05:48]} 11. Bg3 {[%emt 0:00:07]} O-O {[%emt 0:08:22]} 12. Bxc7 {[%emt 0:01:24]} Qxc7 {[%emt 0:00:30]} 13. cxd5 {[%emt 0:00:02]} cxd5 {[%emt 0:04:14]} 14. Nxd5 {[%emt 0:01:41]} Qa5+ {[%emt 0:02:07]} 15. Nc3 {[%emt 0:00:03]} Rd8 {[%emt 0:01:27]} 16. Bd3 {[%emt 0:02:27]} Ne5 {[%emt 0:01:27]} 17. Be4 {[%emt 0:01:04]} Nbc6 {[%emt 0:02:42]} 18. Qb3+ {[%emt 0:00:22]} Kh8 {[%emt 0:01:10]} 19. Nxc6 {[%emt 0:00:12]} Nxc6 {[%emt 0:02:28]} 20. O-O {[%emt 0:00:18]} Ne5 {[%emt 0:01:53]} 21. Rad1 {[%emt 0:01:59]} Re8 {[%emt 0:03:23]} 22. h3 {[%emt 0:06:48]} Be6 {[%emt 0:02:42]} 23. Bd5 {[%emt 0:01:07]} Bxd5 {[%emt 0:03:51]} 24. Rxd5 {[%emt 0:00:01]} Qc7 {[%emt 0:05:37]} 25. Rfd1 {[%emt 0:00:09]} Rad8 {[%emt 0:12:07]} 26. Nb5 {[%emt 0:01:45]} Qb6 {[%emt 0:02:01]} 27. Nd6 {[%emt 0:00:07]} Qxb3 {[%emt 0:03:17]} 28. axb3 {[%emt 0:00:01]} Rf8 {[%emt 0:05:06]} 29. f4 {[%emt 0:00:05]} Rxd6 {[%emt 0:10:32]} 30. Rxd6 {[%emt 0:00:04]} Nc6 {[%emt 0:00:12]} 31. Rd7 {[%emt 0:00:06]} b6 {[%emt 0:02:43]} 32. Rc7 {[%emt 0:00:01]} Na5 {[%emt 0:00:28]} 33. b4 {[%emt 0:00:01]} Nb3 {[%emt 0:00:47]} 34. Rd3 {[%emt 0:00:02]} Na1 {[%emt 0:00:35]} 35. Ra3 {[%emt 0:00:02]} 1-0

[Event "8th Gibraltar U16-Junior 2018"]
[Site "Caleta"]
[Date "2018.08.17"]
[Round "1"]
[White "Diaz Mino, Pablo"]
[Black "Guerreiro, Jose Velho"]
[Result "1-0"]
[ECO "D36"]
[WhiteElo "2052"]
[BlackElo "1525"]
[Annotator "NA RC"]
[PlyCount "59"]
[EventDate "2018.08.17"]
[EventType "swiss"]
[EventCountry "GGB"]
[SourceTitle "playchess.com"]
[Source "ChessBase"]
[SourceQuality "1"]
[TimeControl "6600+10"]

1. d4 {[%emt 0:00:15]} d5 {[%emt 0:00:34]} 2. c4 {[%emt 0:00:24]} e6 {[%emt 0:00:46]} 3. Nc3 {[%emt 0:00:32]} Nf6 {[%emt 0:00:50]} 4. cxd5 {[%emt 0:01:01]} exd5 {[%emt 0:00:53]} 5. Bg5 {[%emt 0:00:57]} Be7 {[%emt 0:01:03]} 6. Qc2 {[%emt 0:00:47]} c6 {[%emt 0:07:49]} 7. e3 {[%emt 0:00:47]} Ne4 {[%emt 0:04:29]} 8. Bxe7 {[%emt 0:05:36]} Qxe7 {[%emt 0:00:17]} 9. Nxd5 {[%emt 0:00:17]} cxd5 {[%emt 0:04:55]} 10. Qxc8+ {[%emt 0:01:43]} Qd8 {[%emt 0:00:10]} 11. Bb5+ {[%emt 0:17:25]} Nc6 {[%emt 0:04:07]} 12. Bxc6+ {[%emt 0:00:33]} bxc6 {[%emt 0:00:12]} 13. Qxc6+ {[%emt 0:00:16]} Ke7 {[%emt 0:09:11]} 14. Qb7+ {[%emt 0:03:00]} Ke6 {[%emt 0:03:28]} 15. Qa6+ {[%emt 0:00:51]} Nd6 {[%emt 0:03:52]} 16. Ne2 {[%emt 0:00:40]} g5 {[%emt 0:02:35]} 17. O-O {[%emt 0:01:41]} Rb8 {[%emt 0:00:57]} 18. b3 {[%emt 0:02:14]} Qd7 {[%emt 0:01:18]} 19. Rac1 {[%emt 0:00:30]} Rb6 {[%emt 0:01:27]} 20. Qd3 {[%emt 0:00:20]} h5 {[%emt 0:01:35]} 21. Nc3 {[%emt 0:00:30]} f5 {[%emt 0:11:45]} 22. Na4 {[%emt 0:00:36]} Rc6 {[%emt 0:04:36]} 23. Nc5+ {[%emt 0:00:24]} Rxc5 {[%emt 0:00:09]} 24. dxc5 {[%emt 0:00:36]} Nc8 {[%emt 0:02:41]} 25. Rfd1 {[%emt 0:00:35]} Ne7 {[%emt 0:01:13]} 26. Qa6+ {[%emt 0:00:24]} Ke5 {[%emt 0:02:31]} 27. f4+ {[%emt 0:01:27]} gxf4 {[%emt 0:01:28]} 28. exf4+ {[%emt 0:00:01]} Ke4 {[%emt 0:03:41]} 29. Rc4+ {[%emt 0:00:20]} Ke3 {[%emt 0:00:45]} 30. Rcd4 {[%emt 0:00:08]} 1-0

[Event "8th Gibraltar U16-Junior 2018"]
[Site "Caleta"]
[Date "2018.08.17"]
[Round "1"]
[White "Perez Beltran, Salvador"]
[Black "Cox, Toby"]
[Result "1-0"]
[ECO "C01"]
[WhiteElo "2018"]
[BlackElo "1479"]
[Annotator "NA RC"]
[PlyCount "51"]
[EventDate "2018.08.17"]
[EventType "swiss"]
[EventCountry "GGB"]
[SourceTitle "playchess.com"]
[Source "ChessBase"]
[SourceQuality "1"]
[TimeControl "6600+10"]

1. e4 {[%emt 0:00:00]} e6 {[%emt 0:00:00]} 2. d4 {[%emt 0:00:00]} d5 {[%emt 0:00:00]} 3. Bd3 {[%emt 0:00:02]} Nf6 {[%emt 0:00:05]} 4. e5 {[%emt 0:00:11]} Nfd7 {[%emt 0:00:06]} 5. f4 {[%emt 0:00:36]} c5 {[%emt 0:00:15]} 6. c3 {[%emt 0:00:15]} Nc6 {[%emt 0:00:07]} 7. Nf3 {[%emt 0:00:43]} a6 {[%emt 0:00:27]} 8. O-O {[%emt 0:07:48]} b5 {[%emt 0:00:56]} 9. f5 {[%emt 0:00:39]} exf5 {[%emt 0:03:19]} 10. Bxf5 {[%emt 0:01:37]} Qb6 {[%emt 0:01:06]} 11. e6 {[%emt 0:06:50]} Nf6 {[%emt 0:08:44]} 12. exf7+ {[%emt 0:06:02]} Kd8 {[%emt 0:00:24]} 13. Bxc8 {[%emt 0:08:32]} Kxc8 {[%emt 0:00:11]} 14. Kh1 {[%emt 0:01:11]} Ra7 {[%emt 0:07:44]} 15. Bg5 {[%emt 0:09:56]} Bd6 {[%emt 0:06:36]} 16. Ne5 {[%emt 0:17:14]} Ne4 {[%emt 0:07:53]} 17. Qg4+ {[%emt 0:01:23]} Kb8 {[%emt 0:00:52]} 18. Nd7+ {[%emt 0:01:43]} Rxd7 {[%emt 0:00:05]} 19. Qxd7 {[%emt 0:00:05]} Rc8 {[%emt 0:03:00]} 20. Bf4 {[%emt 0:01:06]} Bxf4 {[%emt 0:00:57]} 21. Qxc8+ {[%emt 0:00:14]} Kxc8 {[%emt 0:00:35]} 22. f8=Q+ {[%emt 0:00:09]} Kb7 {[%emt 0:00:09]} 23. Rxf4 {[%emt 0:01:39]} Qa5 {[%emt 0:01:18]} 24. Rf7+ {[%emt 0:01:21]} Kb6 {[%emt 0:00:09]} 25. dxc5+ {[%emt 0:00:41]} Nxc5 {[%emt 0:00:13]} 26. b4 {[%emt 0:00:41]} 1-0

[Event "8th Gibraltar U16-Junior 2018"]
[Site "Caleta"]
[Date "2018.08.17"]
[Round "1"]
[White "Carroll, Thomas"]
[Black "Manocha, Shobhin"]
[Result "1/2-1/2"]
[ECO "D10"]
[WhiteElo "1965"]
[BlackElo "1461"]
[Annotator "NA RC"]
[PlyCount "54"]
[EventDate "2018.08.17"]
[EventType "swiss"]
[EventCountry "GGB"]
[SourceTitle "playchess.com"]
[Source "ChessBase"]
[SourceQuality "1"]
[TimeControl "6600+10"]

1. d4 {[%emt 0:00:00]} d5 {[%emt 0:00:00]} 2. c4 {[%emt 0:00:00]} c6 {[%emt 0:00:00]} 3. cxd5 {[%emt 0:00:01]} cxd5 {[%emt 0:00:12]} 4. Nc3 {[%emt 0:00:03]} Nf6 {[%emt 0:00:10]} 5. f3 {[%emt 0:00:05]} Qb6 {[%emt 0:00:19]} 6. e4 {[%emt 0:01:11]} dxe4 {[%emt 0:00:19]} 7. fxe4 {[%emt 0:00:14]} e5 {[%emt 0:00:15]} 8. Bb5+ {[%emt 0:10:22]} Bd7 {[%emt 0:01:22]} 9. Bxd7+ {[%emt 0:02:16]} Nbxd7 {[%emt 0:00:33]} 10. dxe5 {[%emt 0:10:36]} Nxe5 {[%emt 0:01:15]} 11. Nf3 {[%emt 0:03:05]} Neg4 {[%emt 0:05:26]} 12. Qe2 {[%emt 0:04:23]} Bb4 {[%emt 0:13:24]} 13. h3 {[%emt 0:01:47]} Qc5 {[%emt 0:12:02]} 14. Bd2 {[%emt 0:10:10]} Ne5 {[%emt 0:14:44]} 15. a3 {[%emt 0:10:03]} Bxc3 {[%emt 0:07:12]} 16. Bxc3 {[%emt 0:00:15]} Nxf3+ {[%emt 0:01:18]} 17. gxf3 {[%emt 0:03:37]} Qg5 {[%emt 0:02:25]} 18. Bd2 {[%emt 0:04:23]} Qe5 {[%emt 0:01:46]} 19. Be3 {[%emt 0:02:31]} Rd8 {[%emt 0:04:43]} 20. O-O {[%emt 0:02:53]} Nh5 {[%emt 0:03:53]} 21. Rfd1 {[%emt 0:02:11]} O-O {[%emt 0:01:15]} 22. Bxa7 {[%emt 0:09:04]} Nf4 {[%emt 0:08:34]} 23. Qh2 {[%emt 0:01:09]} Qf6 {[%emt 0:02:37]} 24. Be3 {[%emt 0:09:48]} Nd3 {[%emt 0:02:28]} 25. Rf1 {[%emt 0:02:25]} Nxb2 {[%emt 0:01:43]} 26. Rab1 {[%emt 0:01:46]} Nc4 {[%emt 0:00:50]} 27. Qe2 {[%emt 0:02:30]} Qe6 {[%emt 0:08:45]} 1/2-1/2

[Event "8th Gibraltar U16-Junior 2018"]
[Site "Caleta"]
[Date "2018.08.17"]
[Round "1"]
[White "Tombolis, Christopher"]
[Black "Dharmasena, Gavith"]
[Result "1/2-1/2"]
[ECO "C54"]
[WhiteElo "1900"]
[BlackElo "1433"]
[Annotator "NA RC"]
[PlyCount "61"]
[EventDate "2018.08.17"]
[EventType "swiss"]
[EventCountry "GGB"]
[SourceTitle "playchess.com"]
[Source "ChessBase"]
[SourceQuality "1"]
[TimeControl "6600+10"]

1. e4 {[%emt 0:00:00]} e5 {[%emt 0:00:00]} 2. Nf3 {[%emt 0:00:00]} Nc6 {[%emt 0:00:04]} 3. Bc4 {[%emt 0:00:02]} Bc5 {[%emt 0:00:05]} 4. c3 {[%emt 0:00:08]} Nf6 {[%emt 0:00:09]} 5. d3 {[%emt 0:00:04]} O-O {[%emt 0:00:36]} 6. O-O {[%emt 0:00:07]} h6 {[%emt 0:00:55]} 7. h3 {[%emt 0:00:10]} d6 {[%emt 0:00:08]} 8. Bb3 {[%emt 0:00:15]} d5 {[%emt 0:02:06]} 9. exd5 {[%emt 0:01:59]} Nxd5 {[%emt 0:00:07]} 10. Re1 {[%emt 0:01:17]} a6 {[%emt 0:02:32]} 11. Bc2 {[%emt 0:02:10]} Qf6 {[%emt 0:02:25]} 12. Nbd2 {[%emt 0:04:52]} Ba7 {[%emt 0:07:23]} 13. Ne4 {[%emt 0:00:37]} Qe6 {[%emt 0:01:23]} 14. d4 {[%emt 0:07:21]} f5 {[%emt 0:02:07]} 15. Nc5 {[%emt 0:03:21]} Bxc5 {[%emt 0:00:40]} 16. dxc5 {[%emt 0:00:44]} e4 {[%emt 0:01:04]} 17. Bb3 {[%emt 0:02:40]} Nce7 {[%emt 0:01:22]} 18. Nd4 {[%emt 0:00:54]} Qg6 {[%emt 0:00:30]} 19. Ne2 {[%emt 0:03:21]} Be6 {[%emt 0:02:11]} 20. c4 {[%emt 0:05:54]} Nb4 {[%emt 0:01:47]} 21. Nf4 {[%emt 0:00:43]} Qf7 {[%emt 0:00:14]} 22. Qd2 {[%emt 0:07:56]} a5 {[%emt 0:01:19]} 23. a3 {[%emt 0:01:35]} Rad8 {[%emt 0:00:13]} 24. Qe2 {[%emt 0:23:16]} Nd3 {[%emt 0:00:52]} 25. Nxd3 {[%emt 0:00:18]} Rxd3 {[%emt 0:00:13]} 26. Bc2 {[%emt 0:00:04]} Rdd8 {[%emt 0:04:35]} 27. b3 {[%emt 0:00:25]} Nc6 {[%emt 0:00:02]} 28. Bb2 {[%emt 0:00:40]} a4 {[%emt 0:01:39]} 29. b4 {[%emt 0:04:46]} Bxc4 {[%emt 0:00:09]} 30. Qe3 {[%emt 0:00:07]} Bb3 {[%emt 0:01:18]} 31. Bxb3 {[%emt 0:00:30]} 1/2-1/2

[Event "8th Gibraltar U16-Junior 2018"]
[Site "Caleta"]
[Date "2018.08.17"]
[Round "1"]
[White "Howell, Oliver W"]
[Black "Rayner, Hugo"]
[Result "1/2-1/2"]
[ECO "E65"]
[WhiteElo "1853"]
[BlackElo "1391"]
[Annotator "NA RC"]
[PlyCount "110"]
[EventDate "2018.08.17"]
[EventType "swiss"]
[EventCountry "GGB"]
[SourceTitle "playchess.com"]
[Source "ChessBase"]
[SourceQuality "1"]
[TimeControl "6600+10"]

1. Nf3 {[%emt 0:00:00]} Nf6 {[%emt 0:00:01]} 2. c4 {[%emt 0:00:00]} g6 {[%emt 0:00:08]} 3. g3 {[%emt 0:00:03]} Bg7 {[%emt 0:00:10]} 4. Bg2 {[%emt 0:00:05]} O-O {[%emt 0:00:21]} 5. O-O {[%emt 0:00:12]} d6 {[%emt 0:00:17]} 6. Nc3 {[%emt 0:00:41]} c5 {[%emt 0:00:12]} 7. d4 {[%emt 0:01:20]} Nbd7 {[%emt 0:01:54]} 8. e4 {[%emt 0:07:29]} cxd4 {[%emt 0:00:31]} 9. Nxd4 {[%emt 0:00:12]} Nc5 {[%emt 0:05:20]} 10. h3 {[%emt 0:06:57]} Bd7 {[%emt 0:01:13]} 11. Be3 {[%emt 0:03:25]} Rc8 {[%emt 0:02:19]} 12. Rc1 {[%emt 0:01:14]} b6 {[%emt 0:04:19]} 13. Qe2 {[%emt 0:02:33]} Ne6 {[%emt 0:00:41]} 14. Rfd1 {[%emt 0:01:51]} Nxd4 {[%emt 0:01:29]} 15. Bxd4 {[%emt 0:00:31]} Be6 {[%emt 0:00:36]} 16. b3 {[%emt 0:03:32]} Qd7 {[%emt 0:00:45]} 17. e5 {[%emt 0:08:54]} Ne8 {[%emt 0:01:34]} 18. Kh2 {[%emt 0:04:12]} f6 {[%emt 0:06:20]} 19. f4 {[%emt 0:10:26]} fxe5 {[%emt 0:02:56]} 20. fxe5 {[%emt 0:00:59]} Bh6 {[%emt 0:07:29]} 21. Be3 {[%emt 0:09:49]} Bxe3 {[%emt 0:02:37]} 22. Qxe3 {[%emt 0:00:09]} Ng7 {[%emt 0:00:36]} 23. exd6 {[%emt 0:07:05]} exd6 {[%emt 0:00:18]} 24. Rf1 {[%emt 0:07:50]} Rxf1 {[%emt 0:01:51]} 25. Rxf1 {[%emt 0:00:09]} Nf5 {[%emt 0:00:28]} 26. Qd3 {[%emt 0:02:18]} a6 {[%emt 0:07:01]} 27. g4 {[%emt 0:05:49]} Ne7 {[%emt 0:01:13]} 28. Ne4 {[%emt 0:00:25]} Qc7 {[%emt 0:01:58]} 29. Nf6+ {[%emt 0:19:13]} Kg7 {[%emt 0:00:18]} 30. Bd5 {[%emt 0:02:37]} Bxd5 {[%emt 0:00:37]} 31. Nxd5 {[%emt 0:00:29]} Nxd5 {[%emt 0:00:22]} 32. Qd4+ {[%emt 0:00:28]} Kg8 {[%emt 0:01:06]} 33. Qxd5+ {[%emt 0:00:02]} Kg7 {[%emt 0:00:12]} 34. g5 {[%emt 0:01:15]} Qe7 {[%emt 0:02:09]} 35. Re1 {[%emt 0:02:10]} Qf7 {[%emt 0:02:20]} 36. Qd4+ {[%emt 0:00:13]} Kg8 {[%emt 0:00:14]} 37. Kg2 {[%emt 0:00:27]} Rf8 {[%emt 0:01:06]} 38. Qe3 {[%emt 0:00:08]} Qf4 {[%emt 0:00:48]} 39. Qxf4 {[%emt 0:00:41]} Rxf4 {[%emt 0:00:01]} 40. Rd1 {[%emt 0:00:04]} Rf5 {[%emt 0:00:46]} 41. h4 {[%emt 0:00:01]} Re5 {[%emt 0:01:04]} 42. Rxd6 {[%emt 0:00:07]} Re2+ {[%emt 0:00:20]} 43. Kf3 {[%emt 0:00:02]} Rxa2 {[%emt 0:00:20]} 44. Rxb6 {[%emt 0:00:01]} Ra3 {[%emt 0:00:26]} 45. c5 {[%emt 0:00:04]} Ra5 {[%emt 0:00:23]} 46. c6 {[%emt 0:00:06]} Kf7 {[%emt 0:00:19]} 47. b4 {[%emt 0:00:15]} Rf5+ {[%emt 0:00:17]} 48. Kg4 {[%emt 0:00:04]} Re5 {[%emt 0:00:29]} 49. c7 {[%emt 0:00:09]} Re4+ {[%emt 0:00:25]} 50. Kf3 {[%emt 0:00:06]} Rc4 {[%emt 0:00:06]} 51. Rb7 {[%emt 0:00:11]} Ke6 {[%emt 0:00:28]} 52. Ke3 {[%emt 0:00:21]} Kd7 {[%emt 0:00:22]} 53. Kd3 {[%emt 0:00:52]} Rxc7 {[%emt 0:01:08]} 54. Rxc7+ {[%emt 0:00:16]} Kxc7 {[%emt 0:00:01]} 55. Kc3 {[%emt 0:00:01]} Kb6 {[%emt 0:00:42]} 1/2-1/2

[Event "8th Gibraltar U16-Junior 2018"]
[Site "Caleta"]
[Date "2018.08.17"]
[Round "1"]
[White "Silva, Pedro Gil Ferreira "]
[Black "Vyas, Param"]
[Result "1-0"]
[ECO "B43"]
[WhiteElo "1795"]
[BlackElo "1372"]
[Annotator "NA RC"]
[PlyCount "101"]
[EventDate "2018.08.17"]
[EventType "swiss"]
[EventCountry "GGB"]
[SourceTitle "playchess.com"]
[Source "ChessBase"]
[SourceQuality "1"]
[TimeControl "6600+10"]

1. e4 {[%emt 0:00:00]} c5 {[%emt 0:00:00]} 2. Nf3 {[%emt 0:00:13]} e6 {[%emt 0:00:05]} 3. d4 {[%emt 0:00:13]} cxd4 {[%emt 0:00:09]} 4. Nxd4 {[%emt 0:00:31]} a6 {[%emt 0:00:17]} 5. Nc3 {[%emt 0:00:17]} Qc7 {[%emt 0:00:51]} 6. g3 {[%emt 0:00:17]} b6 {[%emt 0:01:53]} 7. Bg2 {[%emt 0:01:21]} Bb7 {[%emt 0:00:15]} 8. O-O {[%emt 0:01:21]} Nf6 {[%emt 0:01:16]} 9. h3 {[%emt 0:06:54]} Be7 {[%emt 0:04:31]} 10. Re1 {[%emt 0:10:27]} d6 {[%emt 0:04:03]} 11. a4 {[%emt 0:01:53]} Nc6 {[%emt 0:21:50]} 12. Nb3 {[%emt 0:04:28]} O-O {[%emt 0:08:15]} 13. f4 {[%emt 0:06:06]} Rfd8 {[%emt 0:08:02]} 14. Qe2 {[%emt 0:18:02]} Nd7 {[%emt 0:04:46]} 15. Be3 {[%emt 0:23:38]} Bf6 {[%emt 0:06:41]} 16. Qd2 {[%emt 0:03:12]} Nc5 {[%emt 0:04:21]} 17. Nd4 {[%emt 0:04:10]} Ne7 {[%emt 0:09:19]} 18. g4 {[%emt 0:08:44]} Ng6 {[%emt 0:17:43]} 19. f5 {[%emt 0:07:26]} Ne5 {[%emt 0:01:01]} 20. Qe2 {[%emt 0:02:58]} Qe7 {[%emt 0:01:33]} 21. b4 {[%emt 0:00:56]} Ncd7 {[%emt 0:00:39]} 22. fxe6 {[%emt 0:00:07]} fxe6 {[%emt 0:00:02]} 23. g5 {[%emt 0:01:34]} Bxg5 {[%emt 0:01:19]} 24. Bxg5 {[%emt 0:00:05]} Qxg5 {[%emt 0:00:07]} 25. Nxe6 {[%emt 0:00:14]} Qe7 {[%emt 0:00:56]} 26. Nxd8 {[%emt 0:00:08]} Rxd8 {[%emt 0:00:34]} 27. Nd5 {[%emt 0:00:43]} Qe8 {[%emt 0:02:15]} 28. Qf2 {[%emt 0:01:23]} Bxd5 {[%emt 0:00:30]} 29. exd5 {[%emt 0:00:04]} Nf6 {[%emt 0:00:12]} 30. Qxb6 {[%emt 0:00:53]} Rd7 {[%emt 0:02:11]} 31. Qxa6 {[%emt 0:02:47]} Qg6 {[%emt 0:00:40]} 32. Qc8+ {[%emt 0:01:05]} Kf7 {[%emt 0:00:13]} 33. Rf1 {[%emt 0:00:15]} Qg5 {[%emt 0:01:12]} 34. a5 {[%emt 0:00:35]} Qe3+ {[%emt 0:00:20]} 35. Kh1 {[%emt 0:00:06]} Qa7 {[%emt 0:00:14]} 36. b5 {[%emt 0:00:37]} Rc7 {[%emt 0:00:14]} 37. b6 {[%emt 0:00:19]} Qxb6 {[%emt 0:00:37]} 38. axb6 {[%emt 0:00:10]} Rxc8 {[%emt 0:00:02]} 39. Ra7+ {[%emt 0:00:29]} Kg6 {[%emt 0:00:02]} 40. b7 {[%emt 0:00:09]} Rb8 {[%emt 0:00:07]} 41. Rb1 {[%emt 0:00:04]} Ned7 {[%emt 0:00:40]} 42. Ra6 {[%emt 0:00:33]} Ne8 {[%emt 0:00:16]} 43. Ra8 {[%emt 0:00:06]} Nc7 {[%emt 0:00:30]} 44. Rxb8 {[%emt 0:00:04]} Nxb8 {[%emt 0:00:02]} 45. Rb6 {[%emt 0:00:11]} Ne8 {[%emt 0:00:52]} 46. Rc6 {[%emt 0:00:07]} Nd7 {[%emt 0:00:23]} 47. Rc8 {[%emt 0:00:18]} Nef6 {[%emt 0:00:06]} 48. h4 {[%emt 0:00:22]} h5 {[%emt 0:00:52]} 49. Bh3 {[%emt 0:00:04]} Kf7 {[%emt 0:00:07]} 50. Bxd7 {[%emt 0:00:02]} Nxd7 {[%emt 0:00:01]} 51. Rc7 {[%emt 0:00:07]} 1-0

[Event "8th Gibraltar U16-Junior 2018"]
[Site "Caleta"]
[Date "2018.08.17"]
[Round "1"]
[White "Lovell, William Pm"]
[Black "Shigaeva, Arina"]
[Result "1-0"]
[ECO "A26"]
[WhiteElo "1783"]
[BlackElo "1271"]
[Annotator "NA RC"]
[PlyCount "99"]
[EventDate "2018.08.17"]
[EventType "swiss"]
[EventCountry "GGB"]
[SourceTitle "playchess.com"]
[Source "ChessBase"]
[SourceQuality "1"]
[TimeControl "6600+10"]

1. c4 {[%emt 0:00:00]} e5 {[%emt 0:00:12]} 2. g3 {[%emt 0:00:00]} Nc6 {[%emt 0:00:38]} 3. Bg2 {[%emt 0:00:03]} g6 {[%emt 0:00:23]} 4. Nc3 {[%emt 0:00:13]} Bg7 {[%emt 0:00:30]} 5. e4 {[%emt 0:00:10]} Nge7 {[%emt 0:00:48]} 6. Nge2 {[%emt 0:00:13]} O-O {[%emt 0:00:32]} 7. d3 {[%emt 0:00:17]} d6 {[%emt 0:00:19]} 8. O-O {[%emt 0:00:39]} f5 {[%emt 0:01:46]} 9. Be3 {[%emt 0:00:41]} Be6 {[%emt 0:01:55]} 10. Nd5 {[%emt 0:01:53]} h6 {[%emt 0:03:47]} 11. Qd2 {[%emt 0:00:51]} Kh7 {[%emt 0:01:12]} 12. f4 {[%emt 0:02:26]} Rb8 {[%emt 0:05:37]} 13. a4 {[%emt 0:07:49]} Nd4 {[%emt 0:02:49]} 14. Rab1 {[%emt 0:02:47]} c6 {[%emt 0:02:10]} 15. Nxe7 {[%emt 0:05:30]} Qxe7 {[%emt 0:00:34]} 16. fxe5 {[%emt 0:07:51]} dxe5 {[%emt 0:00:58]} 17. Nxd4 {[%emt 0:05:57]} exd4 {[%emt 0:00:26]} 18. Bf4 {[%emt 0:02:12]} Rbe8 {[%emt 0:03:53]} 19. Qc2 {[%emt 0:05:37]} g5 {[%emt 0:02:37]} 20. Bd2 {[%emt 0:00:28]} Rf7 {[%emt 0:01:40]} 21. Rbe1 {[%emt 0:02:52]} Qd7 {[%emt 0:02:14]} 22. exf5 {[%emt 0:02:23]} Bxf5 {[%emt 0:02:40]} 23. Rxe8 {[%emt 0:01:08]} Qxe8 {[%emt 0:01:53]} 24. Rxf5 {[%emt 0:00:39]} Rxf5 {[%emt 0:02:47]} 25. Be4 {[%emt 0:00:20]} Qf8 {[%emt 0:02:45]} 26. g4 {[%emt 0:00:33]} Kg8 {[%emt 0:00:58]} 27. Bxf5 {[%emt 0:00:27]} Be5 {[%emt 0:00:29]} 28. Qd1 {[%emt 0:03:15]} Qd6 {[%emt 0:01:28]} 29. Qe2 {[%emt 0:01:00]} c5 {[%emt 0:00:49]} 30. Be4 {[%emt 0:01:45]} b6 {[%emt 0:01:53]} 31. Qf2 {[%emt 0:00:55]} Qf6 {[%emt 0:02:13]} 32. Qxf6 {[%emt 0:03:52]} Bxf6 {[%emt 0:00:17]} 33. h4 {[%emt 0:00:27]} Kg7 {[%emt 0:01:04]} 34. hxg5 {[%emt 0:01:16]} Bxg5 {[%emt 0:00:28]} 35. Bxg5 {[%emt 0:00:18]} hxg5 {[%emt 0:00:09]} 36. Kf2 {[%emt 0:00:12]} Kf6 {[%emt 0:00:24]} 37. Kf3 {[%emt 0:00:07]} Ke5 {[%emt 0:00:37]} 38. Bb7 {[%emt 0:00:05]} Kf6 {[%emt 0:01:03]} 39. Ke4 {[%emt 0:00:03]} Ke6 {[%emt 0:00:39]} 40. Bc8+ {[%emt 0:00:11]} Kf6 {[%emt 0:00:30]} 41. Bf5 {[%emt 0:00:02]} a6 {[%emt 0:01:09]} 42. Bc8 {[%emt 0:00:12]} a5 {[%emt 0:00:08]} 43. Bf5 {[%emt 0:00:05]} Ke7 {[%emt 0:00:48]} 44. Ke5 {[%emt 0:00:05]} Kf7 {[%emt 0:00:49]} 45. Be4 {[%emt 0:00:43]} Ke7 {[%emt 0:01:17]} 46. Kf5 {[%emt 0:00:08]} Kd6 {[%emt 0:01:01]} 47. Kxg5 {[%emt 0:00:20]} Ke5 {[%emt 0:00:36]} 48. Bd5 {[%emt 0:00:03]} Kd6 {[%emt 0:00:51]} 49. Kf6 {[%emt 0:00:02]} Kd7 {[%emt 0:02:05]} 50. g5 {[%emt 0:00:48]} 1-0